bitfinex/quotes_SOLUSD_20241007
["timestamp","ask_amount","ask_price","bid_price","bid_amount"]
[1728326797809,1.69862347,147.27,147.21,0.1]
[1728326798178,16.9734,147.29,147.21,0.1]
[1728326798179,6.7925,147.22,147.21,0.1]
[1728326799502,16.9854,147.19,147.13,0.839677]
[1728326799721,6.7962,147.15,147.13,0.839677]
[1728326800000,1.69933872,147.14,147.13,0.839677]
[1728326800188,8.49553872,147.14,147.13,0.839677]
[1728326800400,6.7962,147.14,147.13,0.839677]
[1728326803492,8.49606319,147.14,147.13,0.839677]
[1728326803694,8.49606319,147.14,147.03,15.1171]
[1728326803695,1.69986319,147.14,146.98,0.839677]
[1728326803898,6.8017,147.02,146.98,0.839677]
[1728326804101,1.70101834,147.07,146.98,7.643277]
[1728326804299,1.70101834,147.07,146.99,6.8031]
[1728326804501,1.70101834,147.07,146.98,0.839677]
[1728326804798,1.70101834,147.07,146.98,7.643077]
[1728326805000,16.0534,147.12,147.01,7.55926701]
[1728326805001,1.70070157,147.06,147.01,7.55926701]
[1728326805312,1.70070157,147.06,146.98,0.839677]
[1728326805313,6.8009,147.04,146.98,0.59674401]
[1728326805621,1.70064462,147.09,147.01,6.8022]
[1728326805915,1.70064462,147.09,147.0,6.8027]
[1728326806128,6.7995,147.07,147.01,6.8022]
[1728326806333,1.70045871,147.06,147.02,6.8017]
[1728326806820,1.70045871,147.06,147.03,23.776884]
[1728326807326,1.70045871,147.06,147.02,30.578584]
[1728326807614,6.7989,147.09,147.02,30.578584]
[1728326807615,1.7003011,147.08,147.04,23.776884]
[1728326808014,8.4993011,147.08,147.03,23.776884]
[1728326808196,8.49977957,147.07,147.03,23.776884]
[1728326808397,8.50034579,147.06,147.01,23.776884]
[1728326808619,1.70035829,147.1,147.01,40.782184]
[1728326808805,6.799,147.08,147.04,23.776884]
[1728326809011,1.70020986,147.07,147.04,23.776884]
[1728326809529,6.7999,147.06,147.04,23.776884]
[1728326809826,1.70024262,147.05,147.04,23.776884]
[1728326810727,8.499152,147.08,147.04,23.776884]
[1728326811020,1.7001293,147.07,147.04,23.776884]
[1728326814202,1.70012643,147.11,147.04,23.776884]
[1728326814407,8.49772643,147.11,147.06,6.7999]
[1728326814711,1.70012643,147.11,147.07,23.776884]
[1728326814909,6.7987,147.09,147.04,30.577684]
[1728326815509,6.7983,147.1,147.05,6.8004]
[1728326815703,1.69982557,147.09,147.06,23.776884]
[1728326816310,6.7976,147.11,147.06,30.576584]
[1728326816650,1.6997853,147.1,147.06,30.576584]
[1728326817126,1.6997853,147.1,147.07,6.7994]
[1728326817349,8.49683544,147.12,147.08,23.776884]
[1728326817626,1.69963544,147.12,147.1,6.7979]
[1728326817831,6.7967,147.13,147.08,30.575884]
[1728326818124,1.69948772,147.12,147.08,30.575884]
[1728326820133,1.69941536,147.17,147.08,30.575884]
[1728326820324,6.7976,147.11,147.08,23.776884]
[1728326820535,6.7972,147.12,147.08,23.776884]
[1728326820707,1.69951854,147.11,147.03,6.227]
[1728326820906,6.7996,147.07,147.03,6.227]
[1728326821107,1.70005113,147.06,147.03,6.227]
[1728326821425,1.70027959,147.1,146.99,6.5932]
[1728326821602,6.8027,147.0,146.99,6.5932]
[1728326821800,6.8023,147.01,146.99,6.5932]
[1728326822201,1.70061447,147.04,146.99,6.5932]
[1728326822511,1.70038742,147.07,146.99,23.6005]
[1728326822822,6.8004,147.05,147.0,6.8027]
[1728326823129,6.8004,147.05,147.01,30.578884]
[1728326823318,1.70016306,147.04,146.99,6.5932]
[1728326823524,1.70048608,147.11,146.99,6.5932]
[1728326823705,6.8027,147.0,146.98,0.59674401]
[1728326823905,1.70085736,147.08,146.98,0.59674401]
[1728326824100,21.70085736,147.08,146.98,0.59674401]
[1728326824416,6.8027,147.0,146.98,0.59674401]
[1728326824735,6.8031,146.99,146.98,0.59674401]
[1728326825031,6.3031,146.99,146.98,0.59674401]
[1728326827531,7.71018834,147.03,146.91,0.1]
[1728326827706,6.8064,146.92,146.91,0.1]
[1728326828032,1.70191862,146.96,146.91,0.1]
[1728326828907,6.806,146.93,146.91,0.1]
[1728326829108,1.70173994,146.95,146.9,23.376884]
[1728326829326,6.8059,146.93,146.9,23.376884]
[1728326829632,1.70179845,146.92,146.9,23.376884]
[1728326829838,1.70179845,146.92,146.85,6.2017]
[1728326830130,1.70179845,146.92,146.89,6.8077]
[1728326830332,1.70179845,146.92,146.87,17.0209]
[1728326830510,6.8054,146.95,146.89,17.0188]
[1728326830830,6.8041,146.97,146.92,6.8064]
[1728326831008,1.70140684,146.96,146.93,6.8059]
[1728326831214,1.70134715,147.02,146.94,23.776884]
[1728326831539,6.8054,146.95,146.92,23.776884]
[1728326831726,6.8046,146.96,146.92,23.776884]
[1728326831916,1.70146045,146.95,146.92,23.776884]
[1728326832115,1.70146045,146.95,146.92,6.8064]
[1728326832321,1.70146045,146.95,146.93,23.776884]
[1728326832638,6.8041,146.97,146.93,23.776884]
[1728326832813,1.701449,146.96,146.93,23.776884]
[1728326833016,6.8035,146.99,146.93,23.776884]
[1728326833239,8.50477648,146.98,146.95,23.776884]
[1728326833449,1.70118434,146.97,146.95,23.776884]
[1728326833611,1.70117941,146.98,146.96,6.8045]
[1728326833811,1.70112512,147.0,146.97,23.776884]
[1728326834007,1.70112512,147.0,146.95,30.261984]
[1728326834208,1.70104538,147.03,146.95,30.261984]
[1728326834437,6.8041,146.97,146.95,30.261984]
[1728326834616,17.0076,147.0,146.95,30.261984]
[1728326835029,17.0076,147.0,146.95,23.776884]
[1728326835327,1.70135866,146.99,146.91,38.2832]
[1728326835536,1.70135866,146.99,146.91,21.2664]
[1728326835832,1.70140063,147.03,146.94,17.0131]
[1728326836038,35.70930063,147.03,146.91,21.2664]
[1728326836210,1.70140063,147.03,146.92,17.0159]
[1728326836413,6.8032,146.99,146.94,6.8051]
[1728326836746,6.8027,147.01,146.96,23.776884]
[1728326836922,1.70086697,147.0,146.95,23.776884]
[1728326837114,6.8021,147.02,146.97,23.776884]
[1728326837315,8.50336862,147.01,146.97,23.776884]
[1728326837518,8.50357728,147.0,146.97,23.776884]
[1728326837711,6.8027,147.0,146.97,23.776884]
[1728326837926,6.8027,147.0,146.96,23.776884]
[1728326838145,1.70088697,146.99,146.96,23.776884]
[1728326838343,6.8027,147.0,146.96,23.776884]
[1728326838655,1.70089121,146.99,146.96,23.776884]
[1728326838841,6.8041,146.97,146.96,23.776884]
[1728326839229,1.70089121,146.99,146.96,23.776884]
[1728326839526,1.70089121,146.99,146.91,6.0338]
[1728326839924,1.7015874,146.98,146.91,6.0338]
[1728326840147,6.8061,146.93,146.91,6.0338]
[1728326840347,1.70163249,146.92,146.88,17.02]
[1728326840655,6.0741,146.99,146.87,21.8263]
[1728326840835,1.70184797,146.98,146.88,6.8082]
[1728326841447,1.70184797,146.98,146.87,21.8263]
[1728326841448,6.806,146.93,146.87,38.8476]
[1728326841747,17.0113,146.97,146.87,38.8476]
[1728326841748,8.5082856,146.92,146.87,45.6559]
[1728326842042,6.8065,146.92,146.87,38.8476]
[1728326842347,1.70180077,146.91,146.87,45.6563]
[1728326842546,6.8065,146.92,146.87,45.6563]
[1728326842843,6.805,146.95,146.91,6.8068]
[1728326843046,6.805,146.95,146.92,23.776884]
[1728326843250,6.8072,146.91,146.87,23.1106]
[1728326843429,6.8065,146.92,146.87,29.919]
[1728326843623,1.70191175,146.91,146.87,29.919]
[1728326843824,1.70191198,146.91,146.87,29.919]
[1728326844062,8.50891198,146.91,146.87,23.1106]
[1728326844230,1.70191198,146.91,146.87,6.0891]
[1728326844426,8.50950017,146.9,146.87,6.0891]
[1728326844640,17.0144,146.94,146.86,13.7791411]
[1728326844956,0.72094655,146.93,146.87,13.7791411]
[1728326845268,0.72094655,146.93,146.83,7.444077]
[1728326845269,17.0165,146.92,146.88,13.7791411]
[1728326845445,6.8088,146.87,146.83,7.444077]
[1728326845765,17.0165,146.92,146.83,14.254577]
[1728326845931,17.0165,146.92,146.84,6.81]
[1728326846442,17.0165,146.92,146.83,31.279977]
[1728326846647,6.8083,146.88,146.84,6.81]
[1728326846845,6.8083,146.88,146.83,31.280077]
[1728326847041,17.0165,146.92,146.83,31.280077]
[1728326847246,6.8088,146.87,146.84,23.776884]
[1728326847671,6.6055,146.96,146.83,7.444077]
[1728326847672,6.8099,146.85,146.83,7.444077]
[1728326847860,6.8093,146.86,146.83,7.444077]
[1728326848363,34.0307,146.93,146.83,14.254277]
[1728326848364,6.8082,146.88,146.83,14.254277]
[1728326848554,6.8087,146.87,146.83,14.254277]
[1728326848857,6.8101,146.84,146.83,0.839677]
[1728326849090,34.0307,146.93,146.83,0.839677]
[1728326849240,20.0,146.94,146.83,0.839677]
[1728326849556,28.13882413,146.94,146.83,0.839677]
[1728326849858,20.0,146.91,146.83,0.839677]
[1728326850272,6.8101,146.84,146.83,0.839677]
[1728326850748,34.0395,146.89,146.83,0.839677]
[1728326851340,20.0,146.88,146.83,0.839677]
[1728326851839,6.8101,146.84,146.83,0.839677]
[1728326852963,6.8093,146.86,146.83,0.839677]
[1728326853163,17.0187,146.9,146.83,0.839677]
[1728326853471,6.8088,146.87,146.83,0.839677]
[1728326853674,6.8095,146.86,146.84,23.776884]
[1728326853971,17.0182,146.91,146.84,23.776884]
[1728326853972,6.8087,146.87,146.84,23.776884]
[1728326854285,6.8096,146.85,146.84,23.776884]
[1728326854465,6.8092,146.86,146.84,23.776884]
[1728326854658,17.0182,146.91,146.84,23.776884]
[1728326854859,6.8082,146.89,146.84,23.776884]
[1728326855376,6.8088,146.87,146.84,23.776884]
[1728326855754,6.8096,146.85,146.84,23.776884]
[1728326855957,15.9168,146.92,146.83,0.839677]
[1728326856168,6.8101,146.84,146.83,0.839677]
[1728326858674,6.811,146.82,146.81,0.1]
[1728326860478,3.70237836,146.83,146.78,5.0]
[1728326860686,23.70237836,146.83,146.78,5.0]
[1728326861853,6.8124,146.79,146.78,5.0]
[1728326862373,57.75607836,146.83,146.71,0.1]
[1728326862374,6.8157,146.72,146.71,0.1]
[1728326862676,17.0325,146.78,146.71,0.1]
[1728326862886,6.8157,146.72,146.71,0.1]
[1728326863361,6.8153,146.73,146.71,0.1]
[1728326863679,34.0627,146.79,146.71,0.1]
[1728326863864,6.8157,146.72,146.71,0.1]
[1728326864062,17.0356,146.76,146.71,0.1]
[1728326864270,6.8149,146.74,146.71,0.1]
[1728326864485,17.0315,146.79,146.71,6.916]
[1728326864678,6.8139,146.76,146.71,6.916]
[1728326864976,37.75607836,146.83,146.71,0.1]
[1728326865294,6.4896,146.84,146.77,23.776884]
[1728326865577,6.8123,146.8,146.75,23.776884]
[1728326865785,6.8127,146.79,146.75,23.776884]
[1728326866083,6.812,146.8,146.75,30.591084]
[1728326866261,15.4702,146.87,146.77,32.5741]
[1728326866262,22.56081698,146.87,146.77,32.5741]
[1728326866461,7.09061698,146.87,146.78,23.776884]
[1728326866663,6.811,146.82,146.78,23.776884]
[1728326867164,6.8116,146.81,146.78,23.776884]
[1728326867507,6.8134,146.77,146.72,6.656]
[1728326867995,6.8139,146.76,146.72,6.656]
[1728326868481,15.4702,146.83,146.71,0.1]
[1728326868669,6.8157,146.72,146.71,0.1]
[1728326870390,17.0312,146.79,146.71,0.1]
[1728326870565,6.8146,146.75,146.71,0.1]
[1728326870879,17.0312,146.79,146.71,0.1]
[1728326871088,6.8156,146.73,146.71,0.1]
[1728326871378,34.0561,146.82,146.71,0.1]
[1728326871784,6.8148,146.74,146.71,0.1]
[1728326872289,21.4851,146.83,146.71,0.1]
[1728326872476,6.8137,146.77,146.72,23.776884]
[1728326872677,17.0282,146.82,146.72,23.776884]
[1728326873882,37.0245,146.85,146.72,57.854684]
[1728326874084,6.8125,146.79,146.74,6.8146]
[1728326874265,6.8125,146.79,146.75,23.776884]
[1728326875980,6.812,146.8,146.75,23.776884]
[1728326876184,6.812,146.8,146.77,23.776884]
[1728326876366,17.0245,146.85,146.77,23.776884]
[1728326876565,6.8119,146.8,146.77,23.776884]
[1728326876780,28.69701698,146.87,146.77,23.776884]
[1728326876781,6.8129,146.78,146.77,23.776884]
[1728326876956,6.8125,146.79,146.77,23.776884]
[1728326877486,17.0274,146.83,146.77,23.776884]
[1728326878169,6.8129,146.78,146.77,23.776884]
[1728326878562,17.0296,146.81,146.72,6.1167]
[1728326878863,34.0555,146.82,146.72,6.1167]
[1728326878864,17.0318,146.79,146.72,6.1167]
[1728326879383,6.8149,146.74,146.72,6.1167]
[1728326879587,17.0318,146.79,146.72,6.1167]
[1728326879765,20.0,146.81,146.71,0.1]
[1728326880084,6.8157,146.72,146.71,0.1]
[1728326880683,17.0349,146.76,146.71,0.1]
[1728326882057,6.8157,146.72,146.71,0.1]
[1728326882764,20.0,146.75,146.68,7.6107766]
[1728326882960,6.817,146.69,146.68,7.6107766]
[1728326883183,21.9902,146.71,146.61,0.1]
[1728326883382,6.8203,146.62,146.61,0.1]
[1728326883680,20.0,146.67,146.53,0.839677]
[1728326883872,17.0524,146.61,146.53,0.839677]
[1728326884074,20.0,146.65,146.53,0.839677]
[1728326884480,6.8238,146.55,146.53,0.839677]
[1728326885083,6.823,146.57,146.53,0.839677]
[1728326885382,6.134,146.61,146.53,0.839677]
[1728326885579,6.8237,146.55,146.53,0.839677]
[1728326886091,6.134,146.61,146.53,0.839677]
[1728326886312,6.823,146.57,146.53,0.839677]
[1728326886617,6.8214,146.6,146.53,0.839677]
[1728326886997,6.8214,146.6,146.54,23.776884]
[1728326887176,1.17678643,146.63,146.54,23.776884]
[1728326887383,40.2279,146.66,146.54,23.776884]
[1728326887574,6.8221,146.59,146.54,23.776884]
[1728326887774,6.8223,146.58,146.54,23.776884]
[1728326887970,1.17580296,146.62,146.54,23.776884]
[1728326888198,6.8208,146.61,146.54,30.600784]
[1728326888667,7.08196126,146.63,146.54,40.836284]
[1728326889201,6.8212,146.6,146.54,47.660184]
[1728326889382,6.8207,146.62,146.55,6.8235]
[1728326889565,7.08196126,146.63,146.57,6.8226]
[1728326889771,6.8196,146.64,146.58,23.776884]
[1728326890071,17.0442,146.68,146.58,23.776884]
[1728326890072,6.8194,146.65,146.58,23.776884]
[1728326890269,6.8194,146.65,146.58,30.598984]
[1728326890478,6.8194,146.65,146.6,23.776884]
[1728326890691,6.8195,146.64,146.6,23.776884]
[1728326891293,6.8199,146.63,146.6,23.776884]
[1728326891494,7.08081129,146.67,146.6,23.776884]
[1728326891802,20.0,146.66,146.6,23.776884]
[1728326892001,20.0,146.66,146.55,6.8231]
[1728326892171,20.0,146.66,146.54,6.824]
[1728326892372,20.0,146.66,146.53,17.900077]
[1728326892701,20.0,146.66,146.55,6.8235]
[1728326892702,37.0464,146.66,146.55,6.8235]
[1728326892905,6.8204,146.62,146.56,6.8228]
[1728326893067,37.0464,146.66,146.56,17.0577]
[1728326893068,6.8197,146.64,146.56,17.0577]
[1728326893477,7.08081129,146.67,146.6,23.776884]
[1728326893684,7.08081129,146.67,146.59,17.0541]
[1728326893685,1.17516548,146.69,146.63,23.776884]
[1728326893974,6.818,146.67,146.63,23.776884]
[1728326894190,6.8185,146.66,146.63,23.776884]
[1728326894372,6.8191,146.65,146.63,23.776884]
[1728326894567,6.8194,146.64,146.63,23.776884]
[1728326894784,9.37400281,146.7,146.57,6.8225]
[1728326894785,6.8203,146.63,146.57,6.8225]
[1728326895192,7.08042755,146.71,146.58,17.0549]
[1728326895609,7.08042755,146.71,146.64,6.8191]
[1728326895610,6.817,146.7,146.64,6.8191]
[1728326895890,7.08042755,146.71,146.64,6.8191]
[1728326895891,6.8165,146.71,146.66,23.776884]
[1728326896090,8.2556393,146.74,146.69,23.776884]
[1728326896269,6.8143,146.75,146.69,23.776884]
[1728326896693,6.8149,146.74,146.69,23.776884]
[1728326896869,6.8153,146.73,146.68,23.776884]
[1728326897069,6.8147,146.74,146.68,30.594284]
[1728326897294,6.8142,146.76,146.7,23.776884]
[1728326898306,1.17436335,146.79,146.72,23.776884]
[1728326898470,6.8125,146.79,146.74,23.776884]
[1728326898674,6.8111,146.82,146.77,23.776884]
[1728326898892,6.8107,146.83,146.77,30.590184]
[1728326899708,11.6460102,146.87,146.8,23.776884]
[1728326899992,17.0242,146.85,146.74,17.0367]
[1728326900173,6.8126,146.79,146.75,23.776884]
[1728326900776,8.56429105,146.84,146.74,23.776884]
[1728326900990,17.0285,146.82,146.74,23.776884]
[1728326901186,6.8128,146.79,146.74,23.776884]
[1728326901384,6.812,146.8,146.74,30.591584]
[1728326901668,8.56429105,146.84,146.74,40.813584]
[1728326901781,22.32084908,146.93,146.75,1.36250896]
[1728326901990,9.73784585,146.89,146.8,23.776884]
[1728326902184,8.56429105,146.89,146.81,6.8114]
[1728326902497,7.07668984,146.9,146.82,23.776884]
[1728326902682,6.8088,146.87,146.82,23.776884]
[1728326903096,8.56429105,146.93,146.84,6.81]
[1728326903278,6.8072,146.91,146.85,6.8092]
[1728326903695,24.08442186,146.97,146.83,56.086884]
[1728326903696,8.56429105,146.96,146.83,56.086884]
[1728326903901,6.11597159,146.95,146.83,56.086884]
[1728326904091,10.05497414,146.95,146.83,56.086884]
[1728326904294,17.0158,146.93,146.83,56.086884]
[1728326904479,6.808,146.89,146.83,62.897284]
[1728326904798,6.8084,146.88,146.83,56.086884]
[1728326905414,6.808,146.89,146.83,62.897284]
[1728326905792,6.8073,146.91,146.83,56.086884]
[1728326906105,6.8073,146.91,146.85,23.776884]
[1728326906288,6.8073,146.91,146.86,6.8091]
[1728326906492,6.8073,146.91,146.87,23.776884]
[1728326906899,18.56133799,146.94,146.86,23.776884]
[1728326907101,6.8073,146.9,146.84,23.776884]
[1728326907293,6.8073,146.9,146.86,23.776884]
[1728326907498,50.6857226,146.92,146.84,23.776884]
[1728326907816,6.8082,146.88,146.84,23.776884]
[1728326908116,6.8088,146.87,146.83,15.2836]
[1728326908421,67.7026226,146.92,146.83,15.2836]
[1728326908422,50.6857226,146.92,146.83,15.2836]
[1728326908715,50.6857226,146.93,146.82,6.4455]
[1728326908716,6.8097,146.85,146.82,6.4455]
[1728326909791,17.0192,146.9,146.82,6.4455]
[1728326910211,50.6857226,146.87,146.77,22.3921]
[1728326910396,6.8119,146.81,146.77,22.3921]
[1728326910594,6.8126,146.79,146.77,22.3921]
[1728326910794,67.7118226,146.84,146.77,22.3921]
[1728326911315,6.8101,146.84,146.79,6.8123]
[1728326911695,6.8106,146.83,146.77,29.205]
[1728326912205,6.8106,146.83,146.78,23.776884]
[1728326912404,67.7078226,146.87,146.77,22.3921]
[1728326912601,6.811,146.82,146.77,22.3921]
[1728326913022,6.811,146.82,146.77,29.2053]
[1728326913230,6.8119,146.81,146.77,22.3921]
[1728326913405,50.6857226,146.87,146.77,6.0513]
[1728326913406,50.6857226,146.84,146.77,6.0513]
[1728326913724,50.6857226,146.78,146.72,22.7116]
[1728326913910,50.6857226,146.78,146.68,6.8171]
[1728326913911,6.8148,146.74,146.68,6.8171]
[1728326914106,67.7190226,146.78,146.68,6.8171]
[1728326914608,67.7190226,146.78,146.69,6.8169]
[1728326914808,67.7190226,146.78,146.7,6.8166]
[1728326915319,6.8137,146.77,146.72,6.8155]
[1728326915504,6.8137,146.77,146.69,17.0418]
[1728326915505,6.8138,146.77,146.71,6.816]
[1728326915709,6.8138,146.77,146.71,23.8557]
[1728326916422,6.8138,146.77,146.72,30.592384]
[1728326916652,67.7148226,146.81,146.74,23.776884]
[1728326916653,6.8129,146.79,146.74,23.776884]
[1728326917128,6.812,146.8,146.74,30.591384]
[1728326917308,67.7115226,146.84,146.74,23.776884]
[1728326917508,67.7079226,146.87,146.79,23.776884]
[1728326917817,67.7079226,146.87,146.77,23.776884]
[1728326918004,6.8106,146.83,146.77,40.809384]
[1728326918203,6.8119,146.81,146.77,23.776884]
[1728326918424,50.6857226,146.84,146.77,23.776884]
[1728326918722,50.6857226,146.84,146.76,16.6644]
[1728326918723,6.8129,146.78,146.76,23.776884]
[1728326919303,6.8138,146.76,146.71,33.7042]
[1728326919522,50.6857226,146.78,146.71,22.9851]
[1728326919728,6.8101,146.84,146.73,50.6857226]
[1728326920020,6.4909,146.92,146.79,17.0304]
[1728326920021,23.55046697,146.83,146.79,17.0304]
[1728326920228,6.71820394,146.82,146.79,17.0304]
[1728326920426,17.0211,146.88,146.73,50.6857226]
[1728326920427,13.49507891,146.81,146.76,17.034]
[1728326920621,6.8119,146.81,146.76,17.034]
[1728326920817,6.68356029,146.8,146.76,17.034]
[1728326921011,6.68356029,146.79,146.77,23.776884]
[1728326921204,6.68356029,146.79,146.71,22.9851]
[1728326921205,50.6857226,146.84,146.71,22.9851]
[1728326921418,50.6857226,146.81,146.71,22.9851]
[1728326921722,67.7185226,146.78,146.71,6.3207]
[1728326922029,6.8148,146.74,146.71,6.3207]
[1728326922252,6.8152,146.73,146.71,6.3207]
[1728326922607,6.8148,146.74,146.71,6.3207]
[1728326922807,6.6253546,146.73,146.71,6.3207]
[1728326923122,67.7185226,146.78,146.66,15.0407]
[1728326923123,6.60191708,146.72,146.68,6.8174]
[1728326923331,6.60191708,146.72,146.66,21.6542]
[1728326923332,6.8161,146.71,146.66,28.4726]
[1728326923511,67.7221226,146.75,146.66,28.4726]
[1728326923512,6.8157,146.72,146.67,6.818]
[1728326923829,17.0328,146.78,146.66,21.6542]
[1728326924035,6.8142,146.76,146.71,6.8161]
[1728326924203,17.16564431,146.75,146.7,6.8165]
[1728326924407,17.0292,146.81,146.67,50.6857226]
[1728326924408,6.60217089,146.74,146.71,17.0404]
[1728326924720,6.8129,146.78,146.73,6.8152]
[1728326925027,17.12190683,146.77,146.73,6.8152]
[1728326925233,6.58534878,146.76,146.74,23.776884]
[1728326925435,25.17039938,146.81,146.73,6.8152]
[1728326925436,6.8109,146.83,146.78,23.776884]
[1728326925613,10.51642268,146.82,146.78,30.589684]
[1728326925820,10.51642268,146.81,146.77,6.8132]
[1728326926012,6.8109,146.83,146.78,6.8128]
[1728326926208,10.50333119,146.82,146.78,17.0313]
[1728326926421,6.81,146.85,146.8,6.8116]
[1728326926620,32.23756332,146.88,146.78,17.0313]
[1728326926621,6.8101,146.84,146.79,6.8123]
[1728326927034,6.81,146.85,146.8,6.8119]
[1728326927322,7.64181724,146.91,146.81,1.36230425]
[1728326927323,7.99744562,146.9,146.81,1.36230425]
[1728326927515,13.77571081,146.89,146.82,23.776884]
[1728326927713,10.36536545,146.88,146.83,6.8105]
[1728326928020,6.8073,146.9,146.85,6.8096]
[1728326928226,10.35781605,146.89,146.83,23.776884]
[1728326928436,7.0522346,146.93,146.86,23.776884]
[1728326928731,13.76741744,146.92,146.86,23.776884]
[1728326928928,13.76741744,146.91,146.85,23.776884]
[1728326929132,10.35790179,146.9,146.85,23.776884]
[1728326929313,7.0522346,146.93,146.85,23.776884]
[1728326929507,6.8073,146.9,146.85,23.776884]
[1728326930429,57.7379572,146.93,146.76,56.4575]
[1728326930635,17.0218,146.87,146.77,23.8457]
[1728326930827,19.26131969,146.92,146.76,22.3887]
[1728326930828,6.812,146.8,146.76,22.3887]
[1728326931408,6.8133,146.77,146.76,22.3887]
[1728326931709,50.6857226,146.86,146.73,1.36268933]
[1728326931912,50.6857226,146.89,146.72,56.9531226]
[1728326932134,6.8101,146.84,146.79,6.812]
[1728326932518,17.021,146.88,146.77,17.0324]
[1728326932727,6.8106,146.83,146.78,30.589384]
[1728326933034,6.8099,146.85,146.8,6.8118]
[1728326933244,50.6857226,146.89,146.81,6.8114]
[1728326933245,6.8092,146.86,146.81,6.8114]
[1728326933421,6.8097,146.85,146.8,30.588684]
[1728326934324,50.6857226,146.92,146.83,23.776884]
[1728326934526,6.8083,146.88,146.83,30.587384]
[1728326935337,17.018,146.91,146.83,23.776884]
[1728326935541,6.8097,146.85,146.83,23.776884]
[1728326935745,17.018,146.91,146.82,6.1213]
[1728326935922,6.8093,146.86,146.82,6.1213]
[1728326936436,6.8097,146.85,146.82,6.1213]
[1728326936735,50.6857226,146.92,146.82,6.1213]
[1728326936736,6.8102,146.84,146.82,6.1213]
[1728326936915,17.02,146.89,146.82,6.1213]
[1728326937116,6.8097,146.85,146.82,6.1213]
[1728326937330,6.8093,146.86,146.82,6.1213]
[1728326937741,17.02,146.89,146.82,6.1213]
[1728326938445,7.06052019,146.91,146.83,40.802184]
[1728326938738,31.19335376,146.97,146.86,23.776884]
[1728326938739,67.6988226,146.95,146.86,23.776884]
[1728326939050,6.8078,146.89,146.85,23.833]
[1728326939336,74.75740468,146.95,146.87,6.8083]
[1728326939516,57.74430468,146.95,146.86,23.776884]
[1728326939720,7.05858208,146.95,146.87,18.38227302]
[1728326940033,6.8065,146.92,146.88,6.8082]
[1728326940216,6.807,146.91,146.87,23.8293]
[1728326940418,7.05858208,146.95,146.85,6.8095]
[1728326940419,57.74430468,146.95,146.85,6.8095]
[1728326940625,34.0275,146.94,146.84,17.0246]
[1728326940833,34.0275,146.94,146.82,6.1213]
[1728326940834,6.8087,146.87,146.82,6.1213]
[1728326941025,6.8095,146.86,146.82,6.1213]
[1728326941231,6.8088,146.87,146.82,6.1213]
[1728326941544,50.6857226,146.92,146.82,6.1213]
[1728326941840,17.0201,146.89,146.82,6.1213]
[1728326942019,6.8097,146.85,146.82,6.1213]
[1728326942440,6.8101,146.84,146.82,6.1213]
[1728326942746,17.0223,146.87,146.8,21.9338]
[1728326943634,17.0223,146.87,146.8,15.122]
[1728326943822,6.8097,146.85,146.8,15.122]
[1728326944231,6.8105,146.84,146.8,15.122]
[1728326944430,6.8107,146.83,146.8,15.122]
[1728326944642,6.8115,146.81,146.77,6.0518]
[1728326945122,6.8112,146.82,146.77,6.0518]
[1728326945740,17.0237,146.86,146.79,6.8122]
[1728326945943,6.8102,146.84,146.79,6.8122]
[1728326946329,6.8099,146.85,146.8,17.0293]
[1728326946543,6.8093,146.86,146.82,6.811]
[1728326946746,6.8096,146.85,146.81,30.588384]
[1728326946940,6.8102,146.84,146.8,23.8411]
[1728326947145,6.8102,146.84,146.8,17.0293]
[1728326947455,50.6857226,146.87,146.77,6.0518]
[1728326947626,6.8129,146.78,146.74,23.8505]